bitfinex/quotes_ETHUSD_20220109
["timestamp","ask_amount","ask_price","bid_price","bid_amount"]
[1641726050946,5.94189152,3113.8,3113.5,6.84886839]
[1641726051342,5.94189152,3113.8,3113.6,0.00113685]
[1641726051990,5.94189152,3113.8,3113.5,5.40300524]
[1641726051991,4.05,3113.7,3113.5,5.40300524]
[1641726052390,0.59189152,3113.8,3113.5,5.40300524]
[1641726052790,0.59189152,3113.8,3113.5,5.33900524]
[1641726054194,2.19958271,3113.8,3113.5,5.33900524]
[1641726054793,3.00307271,3113.8,3113.5,5.33900524]
[1641726054993,3.80656271,3113.8,3113.5,3.22299689]
[1641726055194,3.80656271,3113.8,3113.4,3.22299689]
[1641726056840,3.80656271,3113.8,3113.3,3.22299689]
[1641726057248,3.80656271,3113.8,3113.4,0.00113684]
[1641726057443,6.24203309,3113.8,3113.4,0.00113684]
[1641726057642,3.80656271,3113.8,3113.4,0.00113684]
[1641726057844,3.80656271,3113.8,3113.3,0.00170526]
[1641726058241,6.23355216,3113.8,3113.3,0.00170526]
[1641726058443,3.80656271,3113.8,3113.2,0.00227369]
[1641726058648,2.19958271,3113.8,3113.2,0.00227369]
[1641726059287,2.19958271,3113.8,3113.2,5.96364003]
[1641726059687,3.00305271,3113.8,3113.3,0.00170526]
[1641726060088,3.00305271,3113.8,3113.4,1.61756578]
[1641726060487,2.19958271,3113.8,3113.4,1.61756578]
[1641726061088,2.19958271,3113.8,3113.5,1.61756578]
[1641726061688,2.19958271,3113.8,3113.5,4.35593523]
[1641726062090,2.19958271,3113.8,3113.7,1.21329035]
[1641726062491,2.20071956,3113.8,3113.7,1.21329035]
[1641726062697,2.20071956,3113.8,3113.6,0.08028]
[1641726063343,1.30200989,3113.9,3113.7,3.9516598]
[1641726063644,1.98669028,3113.9,3113.7,2.73836945]
[1641726063850,2.79013028,3113.9,3113.7,2.73836945]
[1641726064243,2.79013028,3113.9,3113.6,3.9516598]
[1641726064945,1.98669028,3113.9,3113.5,2.73836945]
[1641726065244,1.98669028,3113.9,3113.6,0.08141684]
[1641726066245,1.98669028,3113.9,3113.7,2.73836945]
[1641726066695,1.98669028,3113.9,3113.6,0.08141684]
[1641726067090,1.60769119,3113.8,3113.6,0.08141684]
[1641726067790,2.41111119,3113.8,3113.6,0.08141684]
[1641726068589,1.60769119,3113.8,3113.6,0.08141684]
[1641726068889,1.60769119,3113.8,3113.6,0.00113684]
[1641726069289,1.60769119,3113.8,3113.3,0.00284211]
[1641726069491,1e-08,3113.8,3113.4,0.08028]
[1641726069889,1e-08,3113.8,3113.5,0.00170527]
[1641726070544,1e-08,3113.8,3113.3,0.00284211]
[1641726071343,0.73346121,3113.4,3113.3,0.00284211]
[1641726071543,0.73346121,3113.4,3113.3,0.08312211]
[1641726072545,0.73346121,3113.4,3113.3,0.08029]
[1641726073547,0.73346121,3113.4,3113.2,0.08028]
[1641726074392,1e-08,3113.8,3113.2,0.08028]
[1641726074890,1e-08,3113.8,3113.3,1.21329035]
[1641726074891,0.80568499,3113.7,3113.3,1.21329035]
[1641726075187,0.00170527,3113.6,3113.3,1.21329035]
[1641726075590,0.80342001,3113.8,3113.3,1.21329035]
[1641726075591,0.00113684,3113.5,3113.3,1.21329035]
[1641726075987,0.78037618,3113.4,3113.3,1.21329035]
[1641726076786,0.78037618,3113.4,3113.3,1.61756578]
[1641726078142,0.78037618,3113.4,3113.3,1.22899384]
[1641726079441,17.65,3113.0,3112.7,0.17364578]
[1641726079647,2.87471948,3112.9,3112.6,8.33017936]
[1641726079843,3.75702948,3112.9,3112.8,0.00284212]
[1641726080042,1.35925578,3112.9,3112.8,0.00284212]
[1641726080248,19.05,3112.8,3112.7,9.129e-05]
[1641726080441,19.00160507,3112.8,3112.7,9.129e-05]
[1641726080642,2.08428148,3112.9,3112.7,9.129e-05]
[1641726080643,0.47694578,3112.9,3112.7,9.129e-05]
[1641726081244,0.47694578,3112.9,3112.2,2.4780837]
[1641726081446,0.47694578,3112.9,3112.1,2.3977737]
[1641726081704,0.47694578,3112.9,3112.4,0.57623699]
[1641726081893,0.47694578,3112.9,3112.5,2.35596502]
[1641726082093,0.92899384,3113.1,3113.0,0.53305422]
[1641726082693,1.73250864,3113.1,3113.0,0.53305422]
[1641726086741,1.73250864,3113.1,3113.0,3.27129635]
[1641726086939,0.92899384,3113.1,3113.0,3.27129635]
[1641726087344,0.92899384,3113.1,3113.0,0.53305422]
[1641726088142,0.92899384,3113.1,3113.0,3.27129635]
[1641726088541,0.92899384,3113.1,3113.0,0.53305422]
[1641726088942,0.92899384,3113.1,3113.0,3.27129635]
[1641726097402,4.82214033,3113.3,3113.0,3.27129635]
[1641726097601,0.08029,3113.8,3113.6,36.43723953]
[1641726097805,9e-05,3113.8,3113.7,21.52840713]
[1641726098002,1.92953964,3114.3,3113.7,21.52840713]
[1641726098003,1.92953964,3114.3,3113.7,22.58270713]
[1641726098204,0.00568423,3113.8,3113.7,30.42813173]
[1641726098403,0.00568423,3113.8,3113.7,49.33813173]
[1641726098805,0.00568423,3113.8,3113.7,49.97611357]
[1641726099003,0.00568423,3113.8,3113.7,51.58217357]
[1641726099906,8.423e-05,3113.8,3113.7,49.19664729]
[1641726100548,2.54099802,3114.4,3113.9,0.80297]
[1641726100741,2.54099802,3114.4,3114.0,2.47100973]
[1641726100944,0.00284212,3114.3,3113.9,2.90604]
[1641726101142,0.00284212,3114.3,3113.9,5.14924658]
[1641726101341,0.0022737,3114.2,3113.9,5.14924658]
[1641726101741,0.00170527,3114.1,3113.9,5.14924658]
[1641726101942,0.00170527,3114.1,3113.8,0.3]
[1641726102141,0.00113685,3114.0,3113.7,15.62228856]
[1641726102344,0.00113685,3114.0,3113.9,4.10718247]
[1641726102946,0.00113685,3114.0,3113.7,4.91339295]
[1641726103141,0.00113685,3114.0,3113.7,4.83311295]
[1641726103740,0.00113685,3114.0,3113.7,7.10962937]
[1641726104395,0.00113685,3114.0,3113.7,4.83311295]
[1641726104995,0.00113685,3114.0,3113.7,7.06488642]
[1641726105197,0.00113685,3114.0,3113.7,7.36488642]
[1641726105397,0.00113685,3114.0,3113.7,5.13311295]
[1641726105600,0.00113685,3114.0,3113.8,0.08028]
[1641726106197,0.00113685,3114.0,3113.8,1.08028]
[1641726106998,0.00113685,3114.0,3113.8,2.30478198]
[1641726108443,0.00113685,3114.0,3113.9,0.3]
[1641726109044,0.00113685,3114.0,3113.9,0.6]
[1641726109446,0.00113685,3114.0,3113.8,1.38028]
[1641726109645,0.00113685,3114.0,3113.8,2.60478198]
[1641726109847,0.87588384,3114.4,3113.9,15.8]
[1641726110250,0.00170527,3114.3,3113.9,15.8]
[1641726110446,0.00170527,3114.3,3113.8,2.60478198]
[1641726110646,0.00113685,3114.2,3113.8,5.48746247]
[1641726110849,0.00113685,3114.2,3113.9,0.3]
[1641726112092,0.00113685,3114.2,3113.9,2.53349532]
[1641726112492,0.00113685,3114.2,3113.9,2.23349532]
[1641726112894,0.00113685,3114.2,3113.8,3.62315341]
[1641726113093,0.00113685,3114.2,3113.9,1.10311]
[1641726113293,0.00113685,3114.2,3114.0,2.34556682]
[1641726113695,0.00113685,3114.2,3113.8,3.66597722]
[1641726114094,0.00113685,3114.2,3113.8,1.38028]
[1641726114293,0.00113685,3114.2,3113.9,2.30866647]
[1641726114493,0.00113685,3114.2,3113.8,1.38028]
[1641726114695,0.00113685,3114.2,3113.8,0.3]
[1641726114896,0.00113685,3114.2,3113.9,3.10655595]
[1641726115095,0.00113685,3114.2,3113.9,3.48683595]
[1641726115560,0.00113685,3114.2,3113.9,1.18341]
[1641726115757,0.00113685,3114.2,3113.9,4.42310768]
[1641726116161,0.00113685,3114.2,3113.9,4.34282768]
[1641726116457,0.00113685,3114.2,3113.9,5.14590088]
[1641726117058,0.00113685,3114.2,3114.0,0.3]
[1641726117259,0.00113685,3114.2,3114.1,22.27180955]
[1641726117458,0.00113685,3114.2,3114.1,22.57180955]
[1641726117757,0.00113685,3114.2,3114.1,42.48180955]
[1641726117957,0.00113685,3114.2,3114.1,40.06303]
[1641726118161,0.87588384,3114.4,3114.2,19.05]
[1641726118360,0.9303517,3115.3,3114.4,2.31100781]
[1641726118560,0.9303517,3115.3,3114.6,18.91]
[1641726118761,0.9303517,3115.3,3114.7,0.08024]
[1641726119063,0.9303517,3115.3,3114.8,0.96208]
[1641726119294,0.9303517,3115.3,3114.9,0.38024]
[1641726119500,0.9303517,3115.3,3115.0,3.41048735]
[1641726119694,0.9303517,3115.3,3115.1,3.06052606]
[1641726119893,0.9303517,3115.3,3115.1,1.68024]
[1641726120493,0.9303517,3115.3,3115.1,20.59024]
[1641726120893,0.9303517,3115.3,3115.2,19.85266]
[1641726121096,0.9303517,3115.3,3115.2,20.85266]
[1641726121297,0.93660435,3115.3,3115.2,20.85266]
[1641726121495,0.93660435,3115.3,3115.2,20.93291]
[1641726121693,0.93660435,3115.3,3115.2,23.66951537]
[1641726121893,0.93660435,3115.3,3115.2,2.81685537]
[1641726122293,10.18660435,3115.3,3115.2,2.73660537]
[1641726122494,0.93660435,3115.3,3115.2,2.73660537]
[1641726122947,1.58134386,3115.3,3115.2,2.73660537]
[1641726123148,0.93660435,3115.3,3115.2,2.73660537]
[1641726123647,0.93660435,3115.3,3114.7,2.73660537]
[1641726124047,0.00568423,3115.2,3114.7,2.73660537]
[1641726124249,0.00568423,3115.2,3114.5,3.53950537]
[1641726124448,0.00511581,3115.1,3114.6,2.25879467]
[1641726124649,0.00511581,3115.1,3114.6,2.27343057]
[1641726124849,0.00454738,3115.0,3114.5,4.34238537]
[1641726125049,0.00454738,3115.0,3114.6,1.6]
[1641726125248,0.00397896,3114.9,3114.6,6.63808943]
[1641726125747,0.9303517,3115.3,3114.6,6.63808943]
[1641726125748,0.00341054,3114.8,3114.7,2.73660537]
[1641726125948,0.00341054,3114.8,3114.7,17.41290799]
[1641726126148,0.00341054,3114.8,3114.7,18.41290799]
[1641726127196,0.00341054,3114.8,3114.7,24.41290799]
[1641726127397,0.00341054,3114.8,3114.7,18.41290799]
[1641726127997,0.00341054,3114.8,3114.7,16.16685537]
[1641726128900,0.00341054,3114.8,3114.7,16.08660537]
[1641726129498,1.67562415,3115.3,3115.0,0.52964368]
[1641726129697,0.9303517,3115.3,3115.0,0.52964368]
[1641726129898,0.00227369,3115.2,3115.0,0.52964368]
[1641726130299,0.9303517,3115.3,3115.0,0.52964368]
[1641726130300,0.00170527,3115.1,3115.0,0.52964368]
[1641726134699,0.9303517,3115.3,3115.1,4.00341054]
[1641726134897,0.9303517,3115.3,3115.1,4.0]
[1641726135897,0.9303517,3115.3,3115.0,0.52964368]
[1641726136499,2.30848348,3115.3,3115.0,0.52964368]
[1641726137097,0.56223096,3115.2,3115.0,0.52964368]
[1641726138651,1.36530306,3115.2,3115.0,0.52964368]
[1641726138850,0.56223096,3115.2,3115.0,0.52964368]
[1641726139254,0.9303517,3115.3,3115.0,0.52964368]
[1641726139651,1.7333785,3115.3,3115.0,0.52964368]
[1641726139851,1.15431684,3115.2,3115.0,0.52964368]
[1641726140052,0.80308,3115.1,3115.0,0.52964368]
[1641726140252,0.61237749,3115.2,3115.0,0.52964368]
[1641726140452,0.61237749,3115.2,3115.0,1.75414566]
[1641726140854,1.41543489,3115.2,3115.0,1.75414566]
[1641726141255,0.61237749,3115.2,3115.0,1.75414566]
[1641726142299,0.61237749,3115.2,3115.1,1.22450198]
[1641726144102,2.21847149,3115.2,3115.0,1.75414566]
[1641726144302,3.02156149,3115.2,3115.0,1.75414566]
[1641726144508,4.62778149,3115.2,3115.0,1.75414566]
[1641726144703,4.83898149,3115.2,3115.0,1.75414566]
[1641726145006,13.83024,3115.1,3115.0,1.75414566]
[1641726145205,14.83024,3115.1,3115.0,1.75414566]
[1641726145451,0.80332,3114.8,3114.5,1.22450198]
[1641726145652,0.88361,3114.7,3114.5,1.22450198]
[1641726145853,7.60491,3114.7,3114.6,0.00284212]
[1641726146053,18.35,3114.6,3114.1,2.44874402]
[1641726146252,18.35,3114.6,3113.8,2.44874402]
[1641726146253,6.50156,3114.5,3113.8,2.44874402]
[1641726146454,1.60686,3114.4,3114.2,0.00227369]
[1641726146654,23.94346704,3114.3,3114.2,0.00227369]
[1641726147057,9.7152327,3114.3,3114.2,0.00227369]
[1641726147253,6.4213,3114.3,3114.2,0.00227369]
[1641726147452,6.4213,3114.3,3113.8,0.00454739]
[1641726147954,6.4213,3114.3,3114.2,1.6]
[1641726148955,6.4213,3114.3,3114.2,9.45]
[1641726150318,4.77926273,3114.3,3114.2,1.6]
[1641726150916,4.77926273,3114.3,3114.2,7.55]
[1641726151117,4.77926273,3114.3,3114.2,1.6]
[1641726152019,4.77926273,3114.3,3114.2,9.55]
[1641726154449,4.77926273,3114.3,3114.2,9.85]
[1641726154648,4.77926273,3114.3,3114.2,10.85]
[1641726155849,4.77926273,3114.3,3114.2,21.9]
[1641726156250,4.77926273,3114.3,3114.2,10.85]
[1641726156451,4.77926273,3114.3,3114.2,14.95463201]
[1641726157198,4.77926273,3114.3,3114.2,10.85]
[1641726159303,4.77926273,3114.3,3114.2,9.55]
[1641726160303,4.77926273,3114.3,3114.2,10.77570959]
[1641726160957,4.77926273,3114.3,3114.2,2.82570959]
[1641726161360,4.77926273,3114.3,3114.2,5.56240962]
[1641726163064,4.77926273,3114.3,3114.2,4.33670003]
[1641726163664,4.77926273,3114.3,3114.2,5.56245511]
[1641726164903,4.77926273,3114.3,3114.2,12.86245511]
[1641726165103,4.77926273,3114.3,3114.2,5.56245511]
[1641726166704,4.77926273,3114.3,3114.2,10.16245511]
[1641726166905,4.77926273,3114.3,3114.2,8.93670003]
[1641726167709,4.77926273,3114.3,3114.2,18.28670003]
[1641726168757,4.77926273,3114.3,3114.2,16.68670003]
[1641726169455,4.77926273,3114.3,3114.2,8.93670003]
[1641726169857,4.77926273,3114.3,3114.2,14.48670003]
[1641726170866,4.77926273,3114.3,3114.2,8.93670003]
[1641726172713,4.77926273,3114.3,3114.2,17.63670003]
[1641726172917,4.77926273,3114.3,3114.2,8.93670003]
[1641726173513,4.77926273,3114.3,3114.2,9.53670003]
[1641726173714,4.77926273,3114.3,3114.2,18.43670003]
[1641726174514,4.77926273,3114.3,3114.2,10.53670003]
[1641726176561,4.77926273,3114.3,3114.2,5.93670003]
[1641726176964,4.77926273,3114.3,3114.2,4.63670003]
[1641726177168,4.77926273,3114.3,3114.2,5.63670003]
[1641726177564,4.77926273,3114.3,3114.2,4.33670003]
[1641726178067,5.37525273,3114.3,3114.2,4.33670003]
[1641726178464,5.37525273,3114.3,3114.2,5.56367691]
[1641726180203,4.77926273,3114.3,3114.2,5.56367691]
[1641726181604,5.3317079,3114.3,3114.2,4.33670003]
[1641726186264,6.1746079,3114.3,3114.2,5.5646036]
[1641726186461,6.1746079,3114.3,3113.7,6.55337603]
[1641726186462,8.85,3114.2,3113.7,6.55337603]
[1641726186713,2.4103985,3114.0,3113.7,4.10463201]
[1641726186907,10.68028,3113.9,3113.8,0.00454739]
[1641726187107,11.88126358,3113.9,3113.8,0.00454739]
[1641726187307,1.28126358,3113.9,3113.8,0.00454739]
[1641726188206,1.20098358,3113.9,3113.8,0.00454739]
[1641726189510,23.53044631,3113.9,3113.8,0.00454739]
[1641726190019,24.61072631,3113.9,3113.8,0.00454739]
[1641726190461,15.33548253,3113.8,3113.7,0.00511581]
[1641726190662,20.91834526,3113.8,3113.7,0.00511581]
[1641726190862,5.58286273,3113.8,3113.7,0.00511581]
[1641726191064,6.22930465,3113.8,3113.7,0.00511581]
[1641726192663,9.25,3113.7,3113.6,34.99535534]
[1641726192863,11.66088,3113.7,3113.6,34.99535534]
[1641726193464,6.81088,3113.7,3113.6,34.99535534]
[1641726193668,6.81088,3113.7,3113.6,31.99535534]
[1641726193865,6.81088,3113.7,3113.6,31.93135534]
[1641726194066,2.41088,3113.7,3113.6,31.93135534]
[1641726194316,2.41088,3113.7,3113.6,31.86735534]
[1641726197969,2.41088,3113.7,3113.6,35.97340406]
[1641726198566,8.02908435,3113.8,3113.6,35.97340406]
[1641726199567,8.02908435,3113.8,3113.6,31.86735534]
[1641726200570,7.19011913,3113.8,3113.6,31.86735534]
[1641726200771,4.77926273,3113.8,3113.7,14.25]
[1641726200972,4.77926273,3113.8,3113.7,18.35582634]
[1641726201572,4.77926273,3113.8,3113.7,19.58095323]
[1641726202416,4.77926273,3113.8,3113.7,18.35582634]
[1641726203720,0.40038777,3113.8,3113.7,18.35582634]
[1641726206660,0.40038777,3113.8,3113.7,21.09262989]
[1641726207861,0.40038777,3113.8,3113.7,6.84262989]
[1641726208061,0.40038777,3113.8,3113.7,9.0399838]
[1641726208260,0.40038777,3113.8,3113.7,13.0399838]
[1641726208562,0.40038777,3113.8,3113.7,6.84262989]
[1641726208760,0.40038777,3113.8,3113.7,9.03389699]
[1641726209215,0.40038777,3113.8,3113.7,6.84262989]
[1641726209411,0.40038777,3113.8,3113.7,10.64262989]
[1641726210411,0.40038777,3113.8,3113.7,6.84262989]
[1641726210812,0.40038777,3113.8,3113.7,10.37497723]
[1641726211210,0.40038777,3113.8,3113.7,26.42497723]
[1641726214867,0.40038777,3113.8,3113.7,28.87372125]
[1641726215267,0.40038777,3113.8,3113.7,26.42497723]
[1641726216468,0.40038777,3113.8,3113.7,31.8976062]
[1641726216931,0.40038777,3113.8,3113.7,26.42497723]
[1641726217427,0.40038777,3113.8,3113.7,28.87372125]
[1641726217628,1.63119595,3114.3,3113.8,19.05]
[1641726217829,1.63119595,3114.3,3113.9,3.41824298]
[1641726218029,1.63119595,3114.3,3114.0,0.3]
[1641726218030,0.00284212,3114.2,3114.0,0.3]
[1641726218229,0.00284212,3114.2,3114.1,21.6303362]
[1641726218429,1.63119595,3114.3,3114.1,21.6303362]
[1641726218628,1.63119595,3114.3,3114.2,21.28427872]
[1641726218829,1.63119595,3114.3,3114.2,21.83614958]
[1641726219031,1.63460649,3114.3,3114.2,21.83614958]
[1641726219231,1.61086915,3114.3,3114.2,28.67877947]
[1641726220032,1.61086915,3114.3,3114.2,9.62877947]
[1641726220231,1.61086915,3114.3,3114.2,21.62877947]
[1641726221067,1.61086915,3114.3,3114.2,17.52295313]
[1641726222466,1.61086915,3114.3,3114.2,15.28867441]
[1641726223870,1.61086915,3114.3,3114.2,15.96257441]
[1641726224072,1.61086915,3114.3,3114.2,24.51257441]
[1641726224720,1.61086915,3114.3,3114.2,17.56257441]
[1641726225317,1.61086915,3114.3,3114.2,21.66840075]
[1641726225618,1.61086915,3114.3,3114.2,22.21910075]
[1641726225816,0.00341054,3114.3,3114.2,18.11327441]
[1641726226319,0.00341054,3114.3,3114.2,25.16327441]
[1641726226718,0.02373734,3114.9,3114.3,19.05]
[1641726226917,0.02373734,3114.9,3114.4,3.41654056]
[1641726227118,0.00284212,3114.8,3114.6,0.01235069]
[1641726227317,0.00284212,3114.8,3114.7,19.13026]
[1641726227520,0.9303517,3115.3,3114.7,20.04866248]
[1641726227718,0.9303517,3115.3,3114.7,21.04866248]
[1641726227964,0.00511581,3115.2,3114.8,2.9055971]
[1641726228165,0.00511581,3115.2,3114.9,0.08024]
[1641726228366,0.00454739,3115.1,3114.9,0.08024]
[1641726228766,0.00397896,3115.0,3114.9,0.08024]
[1641726229165,0.00397896,3115.0,3114.9,14.90274747]
[1641726229366,0.00397896,3115.0,3114.9,15.20274747]
[1641726229570,0.00397896,3115.0,3114.9,1.22250747]
[1641726229766,0.00397896,3115.0,3114.9,3.46652268]
[1641726229968,0.00397896,3115.0,3114.9,1.22250747]
[1641726230173,0.00397896,3115.0,3114.9,18.37250747]
[1641726230569,0.00397896,3115.0,3114.9,18.67250747]
[1641726230971,0.00397896,3115.0,3114.9,19.43861376]
[1641726231370,1.60683871,3115.5,3115.0,15.55]
[1641726231371,0.89957249,3115.5,3115.0,15.55]
[1641726231817,0.00113685,3115.2,3115.0,15.55]
[1641726232918,0.00113685,3115.2,3114.9,0.3]
[1641726233121,0.00113685,3115.2,3114.8,1.22087796]
[1641726233919,0.80305,3115.1,3114.8,1.22087796]
[1641726234119,0.00113685,3115.2,3114.8,0.67495178]
[1641726235764,0.00113685,3115.2,3114.7,0.08024]
[1641726235965,0.00113685,3115.2,3114.6,1.30111796]
[1641726236164,0.00113685,3115.2,3114.8,0.00113684]
[1641726236368,0.00113685,3115.2,3115.0,29.83941757]
[1641726237367,0.00113685,3115.2,3115.1,20.18245263]
[1641726237568,0.00113685,3115.2,3115.1,19.26269263]
[1641726237770,0.00113685,3115.2,3115.1,18.68606634]
[1641726237971,0.00113685,3115.2,3115.1,8.98606634]
[1641726238467,0.00113685,3115.2,3115.1,4.18606634]
[1641726239817,0.00113685,3115.2,3115.1,0.08024]
[1641726241015,0.00113685,3115.2,3115.1,14.03024]
[1641726241220,0.00113685,3115.2,3114.9,0.08024]
[1641726241916,0.00113685,3115.2,3114.9,1.30111796]
[1641726242316,0.00113685,3115.2,3114.9,0.08024]
[1641726242516,0.00113685,3115.2,3114.8,0.00113684]
[1641726242716,0.00113685,3115.2,3114.9,0.08024]
[1641726244969,0.00113685,3115.2,3115.0,2.73621293]
[1641726245773,0.00113685,3115.2,3115.1,22.4087846]
[1641726245970,0.00113685,3115.2,3115.1,22.4890246]
[1641726246168,0.00113685,3115.2,3115.1,20.08024]
[1641726246837,0.89957249,3115.5,3115.2,19.0]
[1641726247037,0.02373734,3115.8,3115.3,0.08024]
[1641726247231,0.00113685,3115.4,3115.3,1.08024]
[1641726247632,0.00113685,3115.4,3115.3,1.38024]
[1641726247833,0.00113685,3115.4,3115.3,21.18294]
[1641726248432,0.00113685,3115.4,3115.3,28.02497927]
[1641726248632,0.00113685,3115.4,3115.3,28.82767927]
[1641726249036,0.00113685,3115.4,3115.3,24.72185293]
[1641726249935,0.00113685,3115.4,3115.3,28.82767927]
[1641726251375,0.00113685,3115.4,3115.3,47.73767927]
[1641726251773,0.00113685,3115.4,3115.3,28.82767927]
[1641726252773,0.00113685,3115.4,3115.3,32.05067616]
[1641726252976,0.02373734,3116.0,3115.7,0.80254]
[1641726253175,0.02373734,3116.0,3115.8,2.57931802]
[1641726253378,0.00284212,3115.9,3115.8,2.87931802]
[1641726253776,0.00284212,3115.9,3115.8,16.82931802]
[1641726253976,0.00284212,3115.9,3115.8,17.39444874]
[1641726254237,0.00284212,3115.9,3115.8,17.09444874]
[1641726254631,0.00284212,3115.9,3115.8,15.31774072]
[1641726254929,0.00284212,3115.9,3115.8,16.5389599]
[1641726255128,0.00284212,3115.9,3115.8,15.47121918]
[1641726255329,0.00284212,3115.9,3115.8,15.17121918]
[1641726255728,0.00284212,3115.9,3115.8,20.22121918]
[1641726256231,0.00284212,3115.9,3115.8,19.78246243]
[1641726256630,0.00284212,3115.9,3115.8,20.05950795]
[1641726257029,0.00284212,3115.9,3115.8,5.32704552]
[1641726257430,0.00284212,3115.9,3115.6,1.22121918]
[1641726257830,0.00227369,3115.8,3115.6,1.22121918]
[1641726258089,0.00227369,3115.8,3115.4,0.64797015]
[1641726258282,0.00170527,3115.7,3115.5,2.4890246]
[1641726258485,0.00170527,3115.7,3115.5,1.14274]
[1641726258683,1.60634829,3116.4,3115.6,0.3]
[1641726258885,1.60634829,3116.4,3115.7,0.08022]
[1641726259089,0.00511581,3116.3,3115.7,0.08022]
[1641726259484,0.00454739,3116.2,3115.7,0.08022]
[1641726259687,0.00454739,3116.2,3115.9,0.61910787]
[1641726259883,0.00397896,3116.1,3115.9,0.61910787]
[1641726260084,0.00397896,3116.1,3115.8,1.22129686]
[1641726260284,0.00341054,3116.0,3115.8,1.22129686]
[1641726260486,0.10975883,3116.4,3115.9,19.0]
[1641726260686,0.10975883,3116.4,3116.0,0.08021]
[1641726260888,0.00170527,3116.3,3116.0,0.08021]
[1641726261192,0.00113685,3116.2,3116.0,0.08021]
[1641726261386,0.00113685,3116.2,3116.0,1.30150686]
[1641726261818,0.66356488,3116.4,3116.0,1.30150686]
[1641726262020,0.66356488,3116.4,3116.0,1.87099672]
[1641726262219,0.66356488,3116.4,3116.0,0.64969986]
[1641726262619,1.6053508,3116.3,3116.0,0.64969986]
[1641726263020,1.6053508,3116.3,3116.0,0.08021]
[1641726263219,0.8026808,3116.3,3116.0,0.08021]
[1641726263420,0.8026808,3116.3,3115.9,0.08021]
[1641726263823,0.80271,3116.2,3116.0,0.00113684]
[1641726264020,0.10975883,3116.4,3116.0,0.00113684]
[1641726265964,0.91241303,3116.4,3116.0,0.00113684]
[1641726266367,0.10975883,3116.4,3116.0,0.00113684]
[1641726266565,0.10975883,3116.4,3116.0,0.94703684]
[1641726266863,0.10975883,3116.4,3116.1,2.25735947]
[1641726267063,0.10975883,3116.4,3116.0,0.00113684]
[1641726267263,0.10975883,3116.4,3116.0,1.2224337]
[1641726267466,0.10975883,3116.4,3116.0,3.47577583]
[1641726268064,0.10975883,3116.4,3116.0,1.2224337]
[1641726268268,0.05975883,3116.4,3116.0,1.2224337]
[1641726268465,0.05975883,3116.4,3116.0,3.49587175]
[1641726269525,0.05975883,3116.4,3116.1,2.73521794]
[1641726269927,0.86237083,3116.4,3116.1,2.73521794]
[1641726270728,0.86237083,3116.4,3116.1,1.22129686]
[1641726270927,2.4082,3116.3,3116.1,1.22129686]
[1641726271328,1.32268926,3116.2,3116.1,1.22129686]
[1641726271531,2.21952114,3116.3,3116.0,2.73635478]
[1641726271728,0.8027719,3116.2,3116.0,2.73635478]
[1641726271928,1.848098,3116.2,3116.1,2.73521794]
[1641726272127,2.52678523,3116.2,3116.1,2.73521794]
[1641726272329,3.32957523,3116.2,3116.1,2.73521794]
[1641726272530,3.32957523,3116.2,3116.0,0.00113684]
[1641726272830,0.80286,3116.1,3115.7,0.00284212]
[1641726273073,1.605715,3116.0,3115.7,0.00284212]
[1641726273472,2.408575,3116.0,3115.7,0.00284212]
[1641726273672,1.40155475,3115.7,3115.4,0.00454739]
[1641726273974,0.80287,3115.9,3115.4,2.73976533]
[1641726274373,2.4086518,3115.8,3115.5,0.00397897]
[1641726274773,0.8028734,3115.7,3115.4,0.00454739]
[1641726274974,0.8028734,3115.7,3115.6,2.73521794]
[1641726275272,0.8028734,3115.7,3115.6,2.73862848]
[1641726275474,5.20825246,3115.8,3115.6,2.73862848]
[1641726275675,5.20825246,3115.8,3115.6,0.00341054]
[1641726275875,0.58850214,3115.7,3115.5,2.73521794]
[1641726276275,0.58850214,3115.7,3115.2,3.9565148]
[1641726276475,0.80301,3115.4,3115.2,3.9565148]
[1641726276922,0.80301,3115.4,3114.9,3.9565148]
[1641726277121,2.4090221,3115.5,3114.9,3.8925148]
[1641726277321,2.4090221,3115.5,3115.0,0.00682109]
[1641726277621,2.22594705,3115.3,3115.0,0.00682109]
[1641726277821,2.22594705,3115.3,3115.0,2.74203903]
[1641726277822,3.83188105,3115.3,3115.0,2.74203903]
[1641726278022,2.4088939,3115.3,3115.0,2.74203903]
[1641726278220,2.4088939,3115.3,3115.1,0.00625266]
[1641726278221,0.8029599,3115.3,3115.1,0.00625266]
[1641726278421,0.8029599,3115.3,3115.2,0.08024]
[1641726278820,0.8029599,3115.3,3115.2,0.08592424]
[1641726279025,0.8029599,3115.3,3115.2,2.82114218]
[1641726279625,0.7529599,3115.3,3115.2,0.08592424]
[1641726280477,0.7529599,3115.3,3115.2,2.82114218]
[1641726281173,0.8028669,3115.4,3115.2,2.82114218]
[1641726281372,0.8028669,3115.4,3115.2,2.74090218]
[1641726281573,0.8028669,3115.4,3115.3,0.00511582]
[1641726281776,0.8028669,3115.4,3115.3,0.08535582]
[1641726282073,2.4085286,3115.9,3115.3,3.50179606]
[1641726282273,0.08024,3116.3,3115.4,2.22948898]
[1641726282475,0.05975883,3116.4,3115.5,0.08022]
[1641726282674,0.80267,3116.2,3115.5,0.08419897]
[1641726282874,0.05975883,3116.4,3115.6,0.00341054]
[1641726283074,0.05975883,3116.4,3115.7,0.08022]
[1641726283275,0.82235805,3116.4,3115.7,0.08022]
[1641726283476,0.82235805,3116.4,3115.8,0.0022737]
[1641726283676,1.6053588,3116.3,3115.9,0.08021]
[1641726283877,0.05975883,3116.4,3115.9,0.08021]
[1641726284076,0.05975883,3116.4,3116.0,0.00113685]
[1641726284723,0.8027,3116.3,3116.0,0.00113685]
[1641726284922,0.8027,3116.3,3116.0,2.73635479]
[1641726285123,0.8026945,3116.2,3116.0,2.73635479]
[1641726286123,0.8027,3116.3,3116.0,2.73635479]
[1641726286324,0.80272,3116.2,3116.0,2.73635479]
[1641726286930,1.60551,3116.2,3116.0,2.73635479]
[1641726287326,0.74191581,3116.1,3116.0,2.73635479]
[1641726287525,4.34191581,3116.1,3116.0,2.73635479]
[1641726287725,4.34191581,3116.1,3116.0,0.00113685]
[1641726287726,0.74191581,3116.1,3116.0,0.00113685]
[1641726288171,0.74191581,3116.1,3115.9,0.00170527]
[1641726288370,3.15048611,3116.1,3115.9,0.00170527]
[1641726288571,0.80286,3116.0,3115.9,0.00170527]
[1641726288771,0.80286,3116.0,3115.9,2.73521794]
[1641726289171,0.80286,3116.0,3115.9,2.73692321]
[1641726289372,0.80286,3116.0,3115.9,0.00170527]
[1641726289575,1.60574,3116.0,3115.9,0.00170527]
[1641726289772,0.8028953,3115.9,3115.7,0.00284212]
[1641726289974,4.49570359,3115.9,3115.7,0.00284212]
[1641726290575,4.49570359,3115.9,3115.7,1.227352]
[1641726290974,4.49570359,3115.9,3115.8,0.0022737]
[1641726291822,4.39570359,3115.9,3115.8,1.22678358]